[Event "XXVI San Miguel Open 2020"]
[Site "Trevias"]
[Date "2020.09.19"]
[Round "1.1"]
[White "Gonzalez Guedes, Iyan"]
[Black "Aguera Naredo, Javier"]
[Result "1-0"]
[ECO "D04"]
[WhiteElo "2251"]
[BlackElo "2330"]
[Annotator "broadcasts"]
[PlyCount "77"]
[EventDate "2020.09.19"]
[EventType "swiss"]
[EventCountry "ESP"]
[TimeControl "5400+30"]

1. d4 {[%emt 0:00:00]} Nf6 {[%emt 0:00:06]} 2. Nf3 {[%emt 0:00:00]} d5 {[%emt 0:00:21]} 3. e3 {[%emt 0:00:44]} Bg4 {[%emt 0:00:42]} 4. h3 {[%emt 0:01:11]} Bxf3 {[%emt 0:00:58]} 5. gxf3 {[%emt 0:00:26]} Nbd7 {[%emt 0:01:28]} 6. c4 {[%emt 0:05:20]} e5 {[%emt 0:04:18]} 7. cxd5 {[%emt 0:10:41]} exd4 {[%emt 0:04:58]} 8. Qxd4 {[%emt 0:05:03]} Bc5 {[%emt 0:00:52]} 9. Qd1 {[%emt 0:01:59]} Qe7 {[%emt 0:02:43]} 10. Bg2 {[%emt 0:04:26]} O-O-O {[%emt 0:01:47]} 11. Nc3 {[%emt 0:04:28]} Nb6 {[%emt 0:05:52]} 12. f4 {[%emt 0:02:00]} c6 {[%emt 0:06:14]} 13. O-O {[%emt 0:02:20]} Nfxd5 {[%emt 0:07:48]} 14. Nxd5 {[%emt 0:02:28]} Nxd5 {[%emt 0:00:07]} 15. Qc2 {[%emt 0:02:24]} Kb8 {[%emt 0:04:47]} 16. e4 {[%emt 0:13:42]} Nb4 {[%emt 0:02:53]} 17. Qe2 {[%emt 0:01:30]} Nd3 {[%emt 0:09:13]} 18. Be3 {[%emt 0:05:32]} Qh4 {[%emt 0:03:35]} 19. Qf3 {[%emt 0:01:11]} Bxe3 {[%emt 0:02:44]} 20. fxe3 {[%emt 0:02:10]} Nxb2 {[%emt 0:02:46]} 21. Qe2 {[%emt 0:05:22]} Nd3 {[%emt 0:01:41]} 22. Rab1 {[%emt 0:01:35]} Rd7 {[%emt 0:04:38]} 23. Qc2 {[%emt 0:04:19]} Qg3 {[%emt 0:10:38]} 24. Qxc6 {[%emt 0:04:12]} Qxe3+ {[%emt 0:00:09]} 25. Kh1 {[%emt 0:02:13]} Rc7 {[%emt 0:03:49]} 26. Qd6 {[%emt 0:01:11]} Nf2+ {[%emt 0:02:29]} 27. Kh2 {[%emt 0:04:19]} Nxe4 {[%emt 0:06:02]} 28. Qe5 {[%emt 0:01:09]} f5 {[%emt 0:00:09]} 29. Rxb7+ {[%emt 0:04:59]} Kxb7 {[%emt 0:00:21]} 30. Rb1+ {[%emt 0:00:21]} Kc8 {[%emt 0:00:35]} 31. Qxf5+ {[%emt 0:00:41]} Rd7 {[%emt 0:00:35]} 32. Bxe4 {[%emt 0:00:38]} Re8 {[%emt 0:01:57]} 33. Bg2 {[%emt 0:01:51]} Qe6 {[%emt 0:02:19]} 34. Qc5+ {[%emt 0:01:14]} Rc7 {[%emt 0:00:17]} 35. Qb5 {[%emt 0:02:14]} Qe2 {[%emt 0:00:27]} 36. Qf5+ {[%emt 0:01:19]} Qe6 {[%emt 0:01:28]} 37. Qb5 Qe2 {[%emt 0:03:00]} 38. Qf5+ {[%emt 0:00:09]} Kd8 {[%emt 0:03:11]} 39. Rb5 1-0

[Event "XXVI San Miguel Open 2020"]
[Site "Trevias"]
[Date "2020.09.19"]
[Round "1.2"]
[White "Bajo Gutierrez, Ignacio"]
[Black "Alvarez Fernandez, Enrique"]
[Result "1-0"]
[ECO "B43"]
[WhiteElo "2269"]
[BlackElo "2376"]
[Annotator "broadcasts"]
[PlyCount "59"]
[EventDate "2020.09.19"]
[EventType "swiss"]
[EventCountry "ESP"]
[TimeControl "5400+30"]

1. e4 {[%emt 0:00:00]} c5 {[%emt 0:00:00]} 2. Nf3 {[%emt 0:00:00]} e6 {[%emt 0:00:00]} 3. d4 {[%emt 0:00:05]} cxd4 {[%emt 0:00:00]} 4. Nxd4 {[%emt 0:00:08]} a6 {[%emt 0:00:00]} 5. Nc3 {[%emt 0:00:31]} Qc7 {[%emt 0:00:04]} 6. Bd3 {[%emt 0:00:23]} Nc6 {[%emt 0:00:22]} 7. Nxc6 {[%emt 0:00:33]} dxc6 {[%emt 0:00:21]} 8. a4 {[%emt 0:00:11]} Nf6 {[%emt 0:14:14]} 9. O-O {[%emt 0:04:53]} e5 {[%emt 0:11:28]} 10. h3 {[%emt 0:06:32]} Be6 {[%emt 0:06:56]} 11. Qe2 {[%emt 0:06:09]} Bc5 {[%emt 0:02:20]} 12. Kh1 {[%emt 0:05:22]} Nd7 {[%emt 0:04:38]} 13. f4 {[%emt 0:13:44]} exf4 {[%emt 0:01:20]} 14. Bxf4 {[%emt 0:00:08]} Bd6 {[%emt 0:05:26]} 15. Nd5 {[%emt 0:20:29]} Qb8 {[%emt 0:15:49]} 16. e5 {[%emt 0:00:40]} Bc5 {[%emt 0:01:40]} 17. Nc3 {[%emt 0:02:54]} Bd4 {[%emt 0:01:41]} 18. Ne4 {[%emt 0:10:37]} Bxe5 {[%emt 0:08:25]} 19. Ng5 {[%emt 0:00:36]} Qd6 {[%emt 0:02:22]} 20. Nxe6 {[%emt 0:01:53]} Qxe6 {[%emt 0:05:43]} 21. Bc4 {[%emt 0:00:46]} Qe7 {[%emt 0:01:03]} 22. Bxf7+ {[%emt 0:01:47]} Qxf7 {[%emt 0:01:14]} 23. Bxe5 {[%emt 0:00:11]} Qe7 {[%emt 0:03:04]} 24. Rae1 {[%emt 0:07:19]} O-O-O {[%emt 0:02:16]} 25. Qg4 {[%emt 0:00:39]} Rhf8 {[%emt 0:03:05]} 26. Bf6 {[%emt 0:03:20]} Qc5 {[%emt 0:04:26]} 27. Bxd8 {[%emt 0:00:28]} Rxd8 {[%emt 0:00:03]} 28. Rd1 {[%emt 0:02:29]} Qxc2 {[%emt 0:01:08]} 29. Rf7 {[%emt 0:00:58]} h5 {[%emt 0:00:25]} 30. Qd4 {[%emt 0:00:13]} 1-0

[Event "XXVI San Miguel Open 2020"]
[Site "Trevias"]
[Date "2020.09.19"]
[Round "1.3"]
[White "Blazquez Lopez, Berna"]
[Black "Fernandez Torre, Ivan"]
[Result "0-1"]
[ECO "E92"]
[WhiteElo "2184"]
[BlackElo "2200"]
[Annotator "broadcasts"]
[PlyCount "85"]
[EventDate "2020.09.19"]
[EventType "swiss"]
[EventCountry "ESP"]
[TimeControl "5400+30"]

1. d4 {[%emt 0:00:00]} Nf6 {[%emt 0:00:00]} 2. Nf3 {[%emt 0:00:00]} g6 {[%emt 0:00:00]} 3. c4 {[%emt 0:00:00]} Bg7 {[%emt 0:00:00]} 4. Nc3 {[%emt 0:00:00]} O-O {[%emt 0:00:00]} 5. e4 {[%emt 0:00:00]} d6 {[%emt 0:00:00]} 6. Be2 {[%emt 0:00:42]} e5 {[%emt 0:00:00]} 7. Be3 {[%emt 0:00:10]} exd4 {[%emt 0:03:07]} 8. Nxd4 {[%emt 0:00:05]} Re8 {[%emt 0:00:10]} 9. f3 {[%emt 0:00:13]} c6 {[%emt 0:05:51]} 10. Bf2 {[%emt 0:01:11]} d5 {[%emt 0:04:17]} 11. exd5 {[%emt 0:00:55]} cxd5 {[%emt 0:00:21]} 12. O-O {[%emt 0:00:30]} Nc6 {[%emt 0:04:05]} 13. c5 {[%emt 0:02:38]} Nh5 {[%emt 0:16:55]} 14. Qd2 {[%emt 0:02:27]} Be5 {[%emt 0:07:07]} 15. g3 {[%emt 0:02:00]} Be6 {[%emt 0:18:38]} 16. Nxe6 {[%emt 0:09:02]} fxe6 {[%emt 0:00:23]} 17. f4 {[%emt 0:01:53]} Bxc3 {[%emt 0:04:40]} 18. Qxc3 {[%emt 0:12:48]} Qf6 {[%emt 0:00:15]} 19. Qd2 {[%emt 0:05:28]} Ng7 {[%emt 0:01:32]} 20. b4 {[%emt 0:05:45]} a6 {[%emt 0:02:51]} 21. a4 {[%emt 0:01:46]} Nf5 {[%emt 0:02:12]} 22. Rad1 {[%emt 0:02:28]} h5 {[%emt 0:01:44]} 23. b5 {[%emt 0:03:39]} axb5 {[%emt 0:00:03]} 24. axb5 {[%emt 0:00:13]} Nce7 {[%emt 0:00:32]} 25. Rc1 {[%emt 0:08:57]} Ra3 {[%emt 0:04:15]} 26. c6 {[%emt 0:06:10]} bxc6 {[%emt 0:03:28]} 27. bxc6 {[%emt 0:00:42]} d4 {[%emt 0:02:26]} 28. Qb2 {[%emt 0:03:41]} Rc3 {[%emt 0:02:03]} 29. Rxc3 {[%emt 0:13:34]} dxc3 {[%emt 0:00:03]} 30. Qb6 {[%emt 0:03:15]} Nd5 {[%emt 0:04:37]} 31. Qc5 {[%emt 0:01:15]} Qe7 {[%emt 0:00:46]} 32. Qb5 {[%emt 0:04:59]} Qb4 {[%emt 0:02:57]} 33. c7 {[%emt 0:01:45]} Qe7 {[%emt 0:05:20]} 34. Qc6 {[%emt 0:06:04]} Rc8 {[%emt 0:01:23]} 35. Bf3 {[%emt 0:01:00]} Rxc7 {[%emt 0:04:39]} 36. Qa8+ {[%emt 0:00:11]} Kh7 {[%emt 0:00:26]} 37. Bxd5 {[%emt 0:01:08]} exd5 {[%emt 0:00:02]} 38. Qxd5 {[%emt 0:00:24]} Ne3 {[%emt 0:00:13]} 39. Bxe3 {[%emt 0:01:50]} Qxe3+ {[%emt 0:00:02]} 40. Kg2 {[%emt 0:00:24]} c2 {[%emt 0:00:31]} 41. f5 {[%emt 0:00:40]} c1=Q {[%emt 0:00:27]} 42. fxg6+ {[%emt 0:00:17]} Kh6 {[%emt 0:00:24]} 43. Rf8 {[%emt 0:01:21]} 0-1

[Event "XXVI San Miguel Open 2020"]
[Site "Trevias"]
[Date "2020.09.19"]
[Round "1.4"]
[White "Cuevas Fernandez, Jose Alberto"]
[Black "Vergara Anton, Diego"]
[Result "1/2-1/2"]
[ECO "D03"]
[WhiteElo "2125"]
[BlackElo "2151"]
[Annotator "broadcasts"]
[PlyCount "88"]
[EventDate "2020.09.19"]
[EventType "swiss"]
[EventCountry "ESP"]
[TimeControl "5400+30"]

1. d4 {[%emt 0:00:00]} d5 {[%emt 0:00:00]} 2. Bg5 {[%emt 0:00:00]} Nf6 {[%emt 0:00:21]} 3. Nf3 {[%emt 0:00:26]} e6 {[%emt 0:00:23]} 4. e3 {[%emt 0:00:20]} c5 {[%emt 0:02:41]} 5. c3 {[%emt 0:02:32]} Qb6 {[%emt 0:04:27]} 6. Qb3 {[%emt 0:06:02]} Nc6 {[%emt 0:04:10]} 7. Nbd2 {[%emt 0:02:24]} Be7 {[%emt 0:02:05]} 8. Be2 {[%emt 0:00:25]} Bd7 {[%emt 0:05:49]} 9. O-O {[%emt 0:00:46]} h6 {[%emt 0:05:35]} 10. Bh4 {[%emt 0:00:24]} g5 {[%emt 0:02:38]} 11. Bg3 {[%emt 0:00:07]} c4 {[%emt 0:03:55]} 12. Qc2 {[%emt 0:00:36]} Rg8 {[%emt 0:12:26]} 13. b3 {[%emt 0:02:15]} cxb3 {[%emt 0:02:21]} 14. axb3 {[%emt 0:06:18]} h5 {[%emt 0:03:50]} 15. Be5 {[%emt 0:10:52]} g4 {[%emt 0:03:33]} 16. Ne1 {[%emt 0:00:20]} h4 {[%emt 0:02:06]} 17. Nd3 {[%emt 0:01:53]} Ne4 {[%emt 0:03:41]} 18. Nxe4 {[%emt 0:05:13]} dxe4 {[%emt 0:00:15]} 19. Nb2 {[%emt 0:00:01]} Nxe5 {[%emt 0:03:39]} 20. dxe5 {[%emt 0:01:12]} g3 {[%emt 0:03:12]} 21. Nc4 {[%emt 0:00:43]} gxh2+ {[%emt 0:01:21]} 22. Kxh2 {[%emt 0:00:37]} Qc5 {[%emt 0:03:20]} 23. b4 {[%emt 0:04:54]} Qc7 {[%emt 0:01:54]} 24. Qd2 {[%emt 0:03:23]} Kf8 {[%emt 0:02:19]} 25. Nd6 {[%emt 0:02:53]} f5 {[%emt 0:04:38]} 26. f3 {[%emt 0:03:35]} exf3 {[%emt 0:00:47]} 27. Bxf3 {[%emt 0:01:45]} Bc6 {[%emt 0:02:16]} 28. b5 {[%emt 0:11:55]} Bxf3 {[%emt 0:00:44]} 29. Rxf3 {[%emt 0:00:23]} Rd8 {[%emt 0:02:45]} 30. Rd1 {[%emt 0:00:31]} Qc5 {[%emt 0:01:44]} 31. Qd4 {[%emt 0:01:53]} Qxd4 {[%emt 0:01:25]} 32. Rxd4 {[%emt 0:00:07]} Bxd6 {[%emt 0:00:28]} 33. exd6 {[%emt 0:00:20]} Ke8 {[%emt 0:01:43]} 34. e4 {[%emt 0:02:49]} fxe4 {[%emt 0:01:56]} 35. Rf6 {[%emt 0:00:06]} Rg7 {[%emt 0:02:52]} 36. Rxe6+ {[%emt 0:04:03]} Kd7 {[%emt 0:00:05]} 37. Rexe4 {[%emt 0:01:53]} Rdg8 {[%emt 0:01:49]} 38. Re7+ {[%emt 0:03:02]} Rxe7 {[%emt 0:00:11]} 39. dxe7+ {[%emt 0:00:02]} Kxe7 {[%emt 0:00:07]} 40. Rxh4 {[%emt 0:00:04]} Kd6 {[%emt 0:01:38]} 41. Ra4 {[%emt 0:00:21]} Ra8 {[%emt 0:02:25]} 42. g4 {[%emt 0:01:27]} Kc5 {[%emt 0:00:43]} 43. c4 {[%emt 0:00:05]} b6 {[%emt 0:01:48]} 44. Kg3 {[%emt 0:00:06]} Rg8 {[%emt 0:00:43]} 1/2-1/2

[Event "XXVI San Miguel Open 2020"]
[Site "Trevias"]
[Date "2020.09.19"]
[Round "1.5"]
[White "Arias Rodriguez, Santiago"]
[Black "Presa Villa, Andres"]
[Result "0-1"]
[ECO "B15"]
[WhiteElo "2084"]
[BlackElo "2072"]
[Annotator "broadcasts"]
[PlyCount "103"]
[EventDate "2020.09.19"]
[EventType "swiss"]
[EventCountry "ESP"]
[TimeControl "5400+30"]

1. e4 c6 2. d4 d5 3. Nc3 dxe4 4. Nxe4 Nf6 5. Nxf6+ exf6 6. c3 Bd6 7. Bd3 O-O 8. Qc2 Re8+ 9. Ne2 h5 10. Bd2 Nd7 11. O-O-O Nf8 12. Nf4 Bxf4 13. Bxf4 Be6 14. Kb1 b5 15. Be4 Qd7 16. Rhe1 Bd5 17. f3 Re7 18. Bxd5 cxd5 19. Rxe7 Qxe7 20. Qf5 g5 21. Bd2 Qe6 22. Qd3 Qd7 23. Re1 Ng6 24. g3 Kg7 25. b3 a5 26. Bc1 a4 27. Bb2 Ra6 28. Kc2 Rb6 29. Ba3 h4 30. Bc1 b4 31. cxb4 Rxb4 32. Bd2 Rb8 33. b4 hxg3 34. hxg3 Qc7+ 35. Kb2 Qxg3 36. Ka3 Rc8 37. Kxa4 Nf4 38. Qe3 Qh3 39. Rc1 Ra8+ 40. Kb3 Qd7 41. a3 Qa7 42. Kb2 Ne6 43. Rc5 Nxc5 44. dxc5 Qa6 45. Bc1 d4 46. Qxd4 Qxa3+ 47. Kc2 Qxf3 48. Bb2 Re8 49. b5 Re2+ 50. Kb1 Re4 51. Qxf6+ Qxf6 52. Bxf6+ 0-1

[Event "XXVI San Miguel Open 2020"]
[Site "Trevias"]
[Date "2020.09.19"]
[Round "1.6"]
[White "Acebal Muniz, Antonio"]
[Black "Suarez Fernandez, Pablo"]
[Result "1-0"]
[ECO "A17"]
[WhiteElo "1969"]
[BlackElo "2108"]
[Annotator "broadcasts"]
[PlyCount "71"]
[EventDate "2020.09.19"]
[EventType "swiss"]
[EventCountry "ESP"]
[TimeControl "5400+30"]

1. Nf3 Nf6 2. c4 e6 3. Nc3 b6 4. e4 d5 5. e5 Ne4 6. cxd5 Nxc3 7. dxc3 Qxd5 8. Be3 Be7 9. Qa4+ Bd7 10. Qg4 Nc6 11. Bc4 Qa5 12. O-O-O Rg8 13. Qe4 O-O-O 14. Rxd7 Kxd7 15. Rd1+ Kc8 16. Qxc6 Kb8 17. Rd7 Rxd7 18. Qxd7 Bc5 19. Qxf7 Rd8 20. Qxe6 Qa4 21. Nd4 Bxd4 22. cxd4 c5 23. Bb3 Qb4 24. d5 c4 25. Bc2 Qe1+ 26. Bd1 c3 27. bxc3 Qxc3+ 28. Kb1 Qe1 29. Qg4 Rxd5 30. Kc2 Rd8 31. e6 Rc8+ 32. Kb1 g5 33. e7 Qc3 34. Qd4 Qc6 35. Qe5+ Qc7 36. e8=Q 1-0

[Event "XXVI San Miguel Open 2020"]
[Site "Trevias"]
[Date "2020.09.19"]
[Round "2.1"]
[White "Aguera Naredo, Javier"]
[Black "Alvarez Fernandez, Enrique"]
[Result "1-0"]
[ECO "B40"]
[WhiteElo "2330"]
[BlackElo "2376"]
[Annotator "ChessBase"]
[PlyCount "71"]
[EventDate "2020.09.19"]
[EventType "swiss"]
[EventCountry "ESP"]
[SourceTitle "playchess.com"]
[Source "ChessBase"]
[SourceQuality "1"]
[TimeControl "5400+30"]

1. e4 {[%emt 0:00:00]} c5 {[%emt 0:01:14]} 2. Nf3 {[%emt 0:00:00]} e6 {[%emt 0:00:27]} 3. b3 {[%emt 0:01:29]} a6 {[%emt 0:03:29]} 4. Bb2 {[%emt 0:01:33]} d6 {[%emt 0:00:35]} 5. g3 {[%emt 0:01:37]} b6 {[%emt 0:03:47]} 6. Bg2 {[%emt 0:01:39]} Bb7 {[%emt 0:00:20]} 7. Qe2 {[%emt 0:01:07]} Nf6 {[%emt 0:01:41]} 8. d3 {[%emt 0:01:22]} Nbd7 {[%emt 0:02:03]} 9. O-O {[%emt 0:02:02]} Be7 {[%emt 0:00:48]} 10. Nbd2 {[%emt 0:04:44]} O-O {[%emt 0:00:32]} 11. Ng5 {[%emt 0:04:34]} Ne8 {[%emt 0:02:37]} 12. Nh3 {[%emt 0:00:37]} Rb8 {[%emt 0:08:45]} 13. f4 {[%emt 0:01:52]} Bf6 {[%emt 0:00:42]} 14. e5 {[%emt 0:05:35]} Bxg2 {[%emt 0:04:35]} 15. Kxg2 {[%emt 0:00:05]} Be7 {[%emt 0:00:26]} 16. Rae1 {[%emt 0:08:32]} Nc7 {[%emt 0:02:03]} 17. exd6 {[%emt 0:07:59]} Bxd6 {[%emt 0:00:10]} 18. Nc4 {[%emt 0:00:31]} Be7 {[%emt 0:03:00]} 19. Nf2 {[%emt 0:04:38]} f5 {[%emt 0:06:16]} 20. Nh3 {[%emt 0:04:59]} b5 {[%emt 0:02:53]} 21. Ne5 {[%emt 0:02:21]} Rb6 {[%emt 0:02:18]} 22. c4 {[%emt 0:02:51]} Bf6 {[%emt 0:03:55]} 23. Ng1 {[%emt 0:06:17]} Nxe5 {[%emt 0:02:32]} 24. Bxe5 {[%emt 0:00:08]} Rf7 {[%emt 0:09:12]} 25. Nf3 {[%emt 0:01:32]} Rd7 {[%emt 0:00:53]} 26. Rd1 {[%emt 0:03:36]} Ne8 {[%emt 0:03:33]} 27. d4 {[%emt 0:09:48]} Be7 {[%emt 0:14:19]} 28. Rfe1 {[%emt 0:09:12]} bxc4 {[%emt 0:04:56]} 29. Qxc4 {[%emt 0:02:49]} Rc6 {[%emt 0:09:18]} 30. b4 {[%emt 0:00:56]} Rd5 {[%emt 0:03:18]} 31. bxc5 {[%emt 0:02:14]} Bf6 {[%emt 0:01:25]} 32. Rb1 {[%emt 0:02:48]} Bxe5 {[%emt 0:00:13]} 33. Rxe5 {[%emt 0:00:06]} Nf6 {[%emt 0:00:18]} 34. Qb3 {[%emt 0:01:07]} h6 {[%emt 0:02:30]} 35. Qb8 {[%emt 0:02:42]} Rc8 {[%emt 0:00:06]} 36. Qb6 {[%emt 0:00:06]} 1-0

[Event "XXVI San Miguel Open 2020"]
[Site "Trevias"]
[Date "2020.09.19"]
[Round "2.2"]
[White "Gonzalez Guedes, Iyan"]
[Black "Bajo Gutierrez, Ignacio"]
[Result "1/2-1/2"]
[ECO "D05"]
[WhiteElo "2251"]
[BlackElo "2269"]
[Annotator "ChessBase"]
[PlyCount "45"]
[EventDate "2020.09.19"]
[EventType "swiss"]
[EventCountry "ESP"]
[SourceTitle "playchess.com"]
[Source "ChessBase"]
[SourceQuality "1"]
[TimeControl "5400+30"]

1. d4 {[%emt 0:00:00]} Nf6 {[%emt 0:00:00]} 2. Nf3 {[%emt 0:00:00]} e6 {[%emt 0:00:27]} 3. e3 {[%emt 0:00:17]} d5 {[%emt 0:01:13]} 4. Bd3 {[%emt 0:00:21]} Bd6 {[%emt 0:00:36]} 5. b3 {[%emt 0:01:21]} O-O {[%emt 0:00:42]} 6. O-O {[%emt 0:00:36]} c5 {[%emt 0:01:30]} 7. Bb2 {[%emt 0:00:32]} cxd4 {[%emt 0:00:17]} 8. exd4 {[%emt 0:00:59]} Nc6 {[%emt 0:01:31]} 9. Nbd2 {[%emt 0:03:56]} Qc7 {[%emt 0:03:47]} 10. c4 {[%emt 0:01:43]} Rd8 {[%emt 0:11:09]} 11. Qe2 {[%emt 0:03:28]} b6 {[%emt 0:03:10]} 12. Rac1 {[%emt 0:02:42]} Bb7 {[%emt 0:07:22]} 13. Ne5 {[%emt 0:05:23]} dxc4 {[%emt 0:11:29]} 14. bxc4 {[%emt 0:08:42]} Bxe5 {[%emt 0:08:15]} 15. dxe5 {[%emt 0:00:10]} Nd7 {[%emt 0:00:24]} 16. f4 {[%emt 0:08:50]} Nc5 {[%emt 0:01:27]} 17. Bb1 {[%emt 0:01:40]} Nd4 {[%emt 0:03:07]} 18. Qf2 {[%emt 0:03:23]} Qc6 {[%emt 0:03:36]} 19. Rfe1 {[%emt 0:07:10]} Nf5 {[%emt 0:01:04]} 20. Ne4 {[%emt 0:11:43]} Nxe4 {[%emt 0:08:18]} 21. Bxe4 {[%emt 0:00:19]} Qc7 {[%emt 0:00:23]} 22. Bxb7 Qxb7 23. c5 1/2-1/2

[Event "XXVI San Miguel Open 2020"]
[Site "Trevias"]
[Date "2020.09.19"]
[Round "2.3"]
[White "Fernandez Torre, Ivan"]
[Black "Vergara Anton, Diego"]
[Result "0-1"]
[ECO "C11"]
[WhiteElo "2200"]
[BlackElo "2151"]
[Annotator "NA"]
[PlyCount "111"]
[EventDate "2020.09.19"]
[EventType "swiss"]
[EventCountry "ESP"]
[SourceTitle "playchess.com"]
[Source "ChessBase"]
[SourceQuality "1"]
[TimeControl "5400+30"]

1. e4 {[%emt 0:00:00]} e6 {[%emt 0:00:00]} 2. Nf3 {[%emt 0:00:00]} d5 {[%emt 0:00:00]} 3. Nc3 {[%emt 0:00:00]} Nf6 {[%emt 0:03:30]} 4. e5 {[%emt 0:00:00]} Nfd7 {[%emt 0:00:02]} 5. d4 {[%emt 0:00:03]} c5 {[%emt 0:01:01]} 6. dxc5 {[%emt 0:00:12]} Nc6 {[%emt 0:00:16]} 7. Bf4 {[%emt 0:00:19]} Be7 {[%emt 0:02:04]} 8. Bb5 {[%emt 0:08:48]} Nxc5 {[%emt 0:03:16]} 9. Qe2 {[%emt 0:05:53]} a6 {[%emt 0:02:17]} 10. Bd3 {[%emt 0:06:31]} b5 {[%emt 0:03:18]} 11. h4 {[%emt 0:03:41]} b4 {[%emt 0:03:49]} 12. Nb1 {[%emt 0:00:10]} Nxd3+ {[%emt 0:01:06]} 13. cxd3 {[%emt 0:01:23]} a5 {[%emt 0:03:36]} 14. Nbd2 {[%emt 0:02:55]} Ba6 {[%emt 0:02:13]} 15. h5 {[%emt 0:06:31]} h6 {[%emt 0:07:39]} 16. O-O {[%emt 0:02:06]} Qb6 {[%emt 0:03:48]} 17. Rfc1 {[%emt 0:05:44]} Rc8 {[%emt 0:02:52]} 18. Be3 {[%emt 0:14:46]} Qb5 {[%emt 0:03:47]} 19. Nb3 {[%emt 0:06:39]} Qxd3 {[%emt 0:06:19]} 20. Qxd3 {[%emt 0:06:40]} Bxd3 {[%emt 0:00:03]} 21. Nxa5 {[%emt 0:00:12]} Kd7 {[%emt 0:01:56]} 22. Nxc6 {[%emt 0:09:56]} Rxc6 {[%emt 0:00:17]} 23. Rxc6 {[%emt 0:04:05]} Kxc6 {[%emt 0:00:01]} 24. Rc1+ {[%emt 0:00:08]} Kd7 {[%emt 0:09:39]} 25. Nd4 {[%emt 0:00:17]} Ra8 {[%emt 0:01:58]} 26. Nc6 {[%emt 0:02:13]} Bf8 {[%emt 0:04:04]} 27. Bd2 {[%emt 0:02:36]} Rc8 {[%emt 0:01:04]} 28. Nd4 {[%emt 0:02:47]} Bc5 {[%emt 0:03:08]} 29. Nb3 {[%emt 0:00:41]} Be7 {[%emt 0:00:53]} 30. Nd4 {[%emt 0:01:29]} Rc4 {[%emt 0:02:32]} 31. Be3 {[%emt 0:01:36]} Rxc1+ {[%emt 0:03:45]} 32. Bxc1 {[%emt 0:00:01]} Bc5 {[%emt 0:01:36]} 33. Nb3 {[%emt 0:00:07]} Be7 {[%emt 0:02:43]} 34. Nd4 {[%emt 0:00:15]} Bc4 {[%emt 0:01:25]} 35. a3 {[%emt 0:00:59]} Bc5 {[%emt 0:02:06]} 36. Nc2 {[%emt 0:05:24]} b3 {[%emt 0:01:24]} 37. Ne1 {[%emt 0:01:42]} Be2 {[%emt 0:01:15]} 38. Nf3 {[%emt 0:00:39]} Bxf3 {[%emt 0:00:28]} 39. gxf3 {[%emt 0:00:01]} Bd4 {[%emt 0:00:22]} 40. f4 {[%emt 0:00:46]} Kc6 {[%emt 0:01:08]} 41. Kf1 {[%emt 0:00:01]} Kb5 {[%emt 0:00:32]} 42. Ke2 {[%emt 0:00:01]} g6 {[%emt 0:00:23]} 43. f5 {[%emt 0:01:26]} gxh5 {[%emt 0:01:03]} 44. fxe6 {[%emt 0:00:00]} fxe6 {[%emt 0:00:02]} 45. f4 {[%emt 0:00:10]} Kc4 {[%emt 0:02:06]} 46. a4 {[%emt 0:00:03]} Kb4 {[%emt 0:00:37]} 47. Kd3 {[%emt 0:00:06]} Bc5 {[%emt 0:02:26]} 48. f5 {[%emt 0:00:02]} exf5 {[%emt 0:01:13]} 49. Bxh6 {[%emt 0:00:48]} Kxa4 {[%emt 0:00:34]} 50. Bf4 {[%emt 0:02:47]} Kb5 {[%emt 0:00:21]} 51. Kc3 {[%emt 0:00:23]} h4 {[%emt 0:00:34]} 52. e6 {[%emt 0:01:02]} Kc6 {[%emt 0:00:11]} 53. Kxb3 {[%emt 0:00:26]} h3 54. Kc3 {[%emt 0:00:45]} Bd6 {[%emt 0:00:44]} 55. e7 {[%emt 0:00:35]} Bxe7 {[%emt 0:00:01]} 56. Kd4 0-1

[Event "XXVI San Miguel Open 2020"]
[Site "Trevias"]
[Date "2020.09.19"]
[Round "2.4"]
[White "Blazquez Lopez, Berna"]
[Black "Cuevas Fernandez, Jose Alberto"]
[Result "1-0"]
[ECO "A40"]
[WhiteElo "2184"]
[BlackElo "2125"]
[Annotator "NA"]
[PlyCount "111"]
[EventDate "2020.09.19"]
[EventType "swiss"]
[EventCountry "ESP"]
[SourceTitle "playchess.com"]
[Source "ChessBase"]
[SourceQuality "1"]
[TimeControl "5400+30"]

1. d4 {[%emt 0:02:05]} g6 {[%emt 0:00:00]} 2. Nf3 {[%emt 0:00:08]} Bg7 {[%emt 0:00:00]} 3. e4 {[%emt 0:00:11]} c6 {[%emt 0:00:00]} 4. c4 {[%emt 0:01:18]} d6 {[%emt 0:00:00]} 5. Nc3 {[%emt 0:00:07]} Qc7 {[%emt 0:00:10]} 6. Be2 {[%emt 0:00:49]} Nh6 {[%emt 0:00:27]} 7. O-O {[%emt 0:00:47]} O-O {[%emt 0:00:09]} 8. d5 {[%emt 0:02:46]} Nd7 {[%emt 0:00:57]} 9. Be3 {[%emt 0:01:05]} Ng4 {[%emt 0:00:25]} 10. Bg5 {[%emt 0:01:50]} Ngf6 {[%emt 0:06:04]} 11. Qd2 {[%emt 0:01:29]} Nc5 {[%emt 0:00:08]} 12. Qe3 {[%emt 0:04:31]} a5 {[%emt 0:02:18]} 13. h3 {[%emt 0:00:48]} Qb6 {[%emt 0:08:29]} 14. Rab1 {[%emt 0:01:52]} Ncd7 {[%emt 0:01:21]} 15. Qd2 {[%emt 0:02:44]} Re8 {[%emt 0:05:01]} 16. Be3 {[%emt 0:04:11]} Qc7 {[%emt 0:01:04]} 17. Rbc1 {[%emt 0:01:34]} c5 {[%emt 0:00:32]} 18. Ne1 {[%emt 0:05:05]} b6 {[%emt 0:08:32]} 19. Nd3 {[%emt 0:02:11]} Ba6 {[%emt 0:00:09]} 20. b3 {[%emt 0:01:04]} Ne5 {[%emt 0:00:30]} 21. Nxe5 {[%emt 0:01:33]} dxe5 {[%emt 0:00:02]} 22. f4 {[%emt 0:02:12]} Rad8 {[%emt 0:02:05]} 23. f5 {[%emt 0:00:47]} Rf8 {[%emt 0:01:09]} 24. g4 {[%emt 0:04:37]} Ne8 {[%emt 0:00:29]} 25. Bd3 {[%emt 0:03:07]} Nd6 {[%emt 0:00:18]} 26. h4 {[%emt 0:08:16]} f6 {[%emt 0:01:22]} 27. Qg2 {[%emt 0:02:41]} Bc8 {[%emt 0:05:40]} 28. Rf3 {[%emt 0:03:27]} Rf7 {[%emt 0:00:36]} 29. Rcf1 {[%emt 0:01:54]} Rdf8 {[%emt 0:00:02]} 30. a4 {[%emt 0:00:31]} Bd7 {[%emt 0:00:24]} 31. Kf2 {[%emt 0:05:20]} Qc8 {[%emt 0:00:05]} 32. Ke1 {[%emt 0:00:58]} Kh8 {[%emt 0:00:52]} 33. Rh1 {[%emt 0:00:54]} Rg8 {[%emt 0:00:34]} 34. Qd2 {[%emt 0:02:43]} Re8 {[%emt 0:02:33]} 35. Kd1 {[%emt 0:00:32]} Rd8 {[%emt 0:01:47]} 36. Kc2 {[%emt 0:00:29]} Re8 {[%emt 0:02:07]} 37. Rhf1 {[%emt 0:02:01]} Kg8 {[%emt 0:00:22]} 38. Qf2 {[%emt 0:02:22]} Ref8 {[%emt 0:00:19]} 39. Rh1 {[%emt 0:00:17]} Rd8 {[%emt 0:00:24]} 40. Ne2 {[%emt 0:01:11]} Rdf8 {[%emt 0:07:59]} 41. Nc3 {[%emt 0:01:45]} Rd8 {[%emt 0:03:16]} 42. Qd2 {[%emt 0:00:12]} Re8 {[%emt 0:00:24]} 43. h5 {[%emt 0:00:59]} g5 {[%emt 0:01:07]} 44. h6 {[%emt 0:00:19]} Bh8 {[%emt 0:00:06]} 45. Bxg5 {[%emt 0:00:51]} fxg5 {[%emt 0:00:09]} 46. Qxg5+ {[%emt 0:00:04]} Kf8 {[%emt 0:00:17]} 47. Qh5 {[%emt 0:00:34]} e6 {[%emt 0:00:52]} 48. dxe6 {[%emt 0:02:02]} Bxe6 {[%emt 0:00:20]} 49. Rhf1 {[%emt 0:02:14]} Bxf5 {[%emt 0:02:26]} 50. gxf5 {[%emt 0:01:17]} Rd8 {[%emt 0:04:52]} 51. Nd5 {[%emt 0:00:50]} Ne8 {[%emt 0:00:02]} 52. f6 {[%emt 0:04:21]} Qe6 {[%emt 0:00:41]} 53. Qg5 {[%emt 0:02:16]} Rd6 {[%emt 0:00:28]} 54. Rf5 {[%emt 0:02:18]} Nxf6 {[%emt 0:04:39]} 55. Rxe5 {[%emt 0:02:15]} Qg4 {[%emt 0:05:27]} 56. Rxf6 {[%emt 0:05:19]} 1-0